bitfinex/quotes_SOLUSD_20240621
["timestamp","ask_amount","ask_price","bid_price","bid_amount"]
[1718996438493,6.3777,132.36,132.27,15.1205]
[1718996438698,6.3777,132.36,132.3,6.0468]
[1718996439225,6.3777,132.36,132.28,6.0476]
[1718996439531,6.3777,132.36,132.28,6.0477]
[1718996439888,6.3777,132.36,132.26,0.8627372]
[1718996440091,6.3777,132.36,132.26,6.9112372]
[1718996440499,6.3777,132.36,132.26,0.8627372]
[1718996440704,45.0,132.35,132.26,6.9113372]
[1718996441011,45.0,132.35,132.28,6.0477]
[1718996441224,6.3777,132.36,132.27,6.0481]
[1718996441390,6.3777,132.36,132.26,0.8627372]
[1718996441591,45.0,132.35,132.26,0.8627372]
[1718996442024,15.9225,132.34,132.26,0.8627372]
[1718996442323,45.0,132.33,132.26,0.8627372]
[1718996442629,35.9225,132.34,132.26,0.8627372]
[1718996442932,15.9225,132.34,132.26,0.8627372]
[1718996443222,15.9225,132.34,132.28,6.0473]
[1718996443395,15.9225,132.34,132.29,6.0471]
[1718996443594,15.9225,132.34,132.26,0.8627372]
[1718996443595,15.9225,132.34,132.26,6.9112372]
[1718996443795,15.9225,132.34,132.27,6.0482]
[1718996443997,15.9225,132.34,132.26,0.8627372]
[1718996445203,15.9225,132.34,132.26,6.9111372]
[1718996445403,15.9225,132.34,132.26,0.8627372]
[1718996445818,51.409,132.33,132.26,0.8627372]
[1718996446125,51.409,132.33,132.16,80.2115]
[1718996446126,6.205,132.31,132.13,140.8016372]
[1718996446329,6.205,132.31,132.15,100.0]
[1718996446621,6.205,132.31,132.2,15.1285]
[1718996446826,6.205,132.31,132.23,6.0496]
[1718996447325,6.205,132.31,132.26,6.0485]
[1718996447626,6.205,132.31,132.21,39.9389]
[1718996447925,6.205,132.31,132.25,6.049]
[1718996448123,6.205,132.31,132.23,6.05]
[1718996448621,6.205,132.31,132.22,6.0503]
[1718996448826,6.205,132.31,132.23,6.0497]
[1718996449011,6.205,132.31,132.22,6.0503]
[1718996449223,6.205,132.31,132.19,15.1286]
[1718996449594,6.205,132.31,132.24,6.0495]
[1718996449793,6.205,132.31,132.23,6.0499]
[1718996450234,6.205,132.31,132.22,6.0503]
[1718996450405,6.205,132.31,132.2,15.1275]
[1718996450604,6.205,132.31,132.18,21.4569]
[1718996450902,6.205,132.31,132.2,6.0512]
[1718996451127,45.0,132.3,132.2,6.0512]
[1718996451331,45.0,132.3,132.19,6.0517]
[1718996451835,45.0,132.3,132.15,15.3216]
[1718996451836,21.7952,132.29,132.15,15.3216]
[1718996452040,45.0,132.28,132.17,6.0526]
[1718996452625,41.7952,132.29,132.14,21.4614]
[1718996452835,41.7952,132.29,132.19,6.0516]
[1718996453048,41.7952,132.29,132.19,6.0515]
[1718996453221,21.7952,132.29,132.17,15.1317]
[1718996453539,21.7952,132.29,132.21,6.0508]
[1718996453737,21.7952,132.29,132.19,6.0518]
[1718996453938,21.7952,132.29,132.2,6.0514]
[1718996454326,21.7952,132.29,132.18,6.0519]
[1718996454532,21.7952,132.29,132.17,6.0526]
[1718996454841,21.7952,132.29,132.2,6.0511]
[1718996455013,21.7952,132.29,132.19,37.9196]
[1718996455215,21.7952,132.29,132.21,15.1271]
[1718996455440,21.7952,132.29,132.23,6.0498]
[1718996455654,21.7952,132.29,132.24,6.0495]
[1718996456516,21.7952,132.29,132.23,6.0499]
[1718996456822,6.2111,132.29,132.21,37.9171]
[1718996457024,22.1865,132.32,132.26,6.0484]
[1718996457654,22.1865,132.32,132.24,15.123]
[1718996457826,7.90739457,132.38,132.23,22.79]
[1718996457827,22.4393,132.36,132.32,6.0456]
[1718996458025,22.4393,132.36,132.29,6.0471]
[1718996458212,22.4393,132.36,132.28,6.0475]
[1718996458425,22.4393,132.36,132.27,6.0481]
[1718996458620,22.4393,132.36,132.22,67.79]
[1718996458836,22.4393,132.36,132.24,22.79]
[1718996459150,22.4393,132.36,132.26,6.0485]
[1718996459451,22.4393,132.36,132.21,6.1585]
[1718996459649,22.4393,132.36,132.22,15.1262]
[1718996459862,22.4393,132.36,132.22,37.9162]
[1718996460038,22.4393,132.36,132.25,6.0489]
[1718996460358,71.3956,132.35,132.23,6.05]
[1718996460560,71.3956,132.35,132.2,33.67]
[1718996460748,6.3956,132.35,132.27,6.0481]
[1718996460947,6.3956,132.35,132.23,22.79]
[1718996461150,6.3956,132.35,132.24,37.9129]
[1718996461526,6.3956,132.35,132.21,30.2528]
[1718996461527,6.3956,132.35,132.26,37.9114]
[1718996461752,6.3956,132.35,132.29,6.0468]
[1718996461939,6.3956,132.35,132.3,6.0466]
[1718996462137,7.90739457,132.38,132.27,167.79]
[1718996462337,22.4393,132.4,132.33,6.0451]
[1718996462562,22.4393,132.4,132.29,37.9077]
[1718996462768,22.4393,132.4,132.3,67.79]
[1718996463067,6.3956,132.4,132.33,22.79]
[1718996463251,16.0437,132.44,132.34,67.79]
[1718996463765,16.0437,132.44,132.38,6.0431]
[1718996464059,16.0437,132.44,132.35,37.9003]
[1718996464250,6.3956,132.45,132.37,37.8991]
[1718996464639,6.3956,132.45,132.36,45.0]
[1718996464843,6.3956,132.45,132.38,6.0429]
[1718996465246,6.3956,132.45,132.39,6.0427]
[1718996465652,6.3956,132.45,132.32,15.1144]
[1718996465862,6.3956,132.45,132.3,33.67]
[1718996466164,6.3956,132.45,132.28,15.1259]
[1718996466165,16.4907,132.43,132.28,15.1259]
[1718996466372,16.4907,132.43,132.29,6.0471]
[1718996466778,26.2756,132.42,132.29,6.0471]
[1718996467080,45.0,132.41,132.29,6.0473]
[1718996467253,20.0,132.4,132.29,6.0473]
[1718996467751,45.0,132.39,132.26,15.1209]
[1718996467950,22.8724,132.38,132.24,22.79]
[1718996468164,22.8724,132.38,132.27,6.0479]
[1718996468662,22.8724,132.38,132.21,29.1694]
[1718996468863,65.0,132.37,132.25,6.0491]
[1718996469169,65.0,132.37,132.26,6.0486]
[1718996469469,65.0,132.37,132.25,6.0489]
[1718996470381,20.0,132.37,132.25,6.0489]
[1718996470669,20.0,132.37,132.22,15.1261]
[1718996470670,20.0,132.37,132.24,6.0494]
[1718996471047,20.0,132.37,132.22,15.1261]
[1718996471258,20.0,132.37,132.2,15.1285]
[1718996471562,45.0,132.36,132.23,6.0498]
[1718996471752,20.0,132.35,132.23,6.0498]
[1718996471951,6.6389,132.33,132.18,15.1302]
[1718996472150,20.0,132.32,132.21,6.0506]
[1718996472370,16.2199,132.3,132.18,15.1302]
[1718996473059,16.2199,132.3,132.19,6.0517]
[1718996473240,16.2199,132.3,132.19,6.0515]
[1718996474043,16.2199,132.3,132.18,6.0521]
[1718996474240,20.0,132.29,132.19,6.0518]
[1718996475145,24.13102406,132.3,132.18,22.79]
[1718996475343,16.2199,132.3,132.23,6.05]
[1718996475954,16.2199,132.3,132.22,6.0503]
[1718996476275,16.2199,132.3,132.17,37.9219]
[1718996476573,16.2199,132.3,132.19,6.0514]
[1718996476746,16.2199,132.3,132.17,15.1319]
[1718996477147,16.2199,132.3,132.16,33.67]
[1718996477343,20.0,132.29,132.16,56.46]
[1718996477548,20.0,132.29,132.2,6.0512]
[1718996477785,45.0,132.28,132.18,6.0522]
[1718996477954,45.0,132.28,132.19,6.0518]
[1718996478157,20.0,132.29,132.2,6.0513]
[1718996478880,45.0,132.28,132.16,48.802]
[1718996479176,45.0,132.28,132.16,6.0529]
[1718996479358,45.0,132.28,132.15,22.79]
[1718996479561,20.0,132.29,132.16,67.79]
[1718996479874,20.0,132.29,132.19,6.0517]
[1718996481080,16.2199,132.3,132.18,22.79]
[1718996481281,16.2199,132.3,132.21,15.1273]
[1718996481578,16.2199,132.3,132.23,6.0497]
[1718996482075,16.2199,132.3,132.24,6.0495]
[1718996482272,16.2199,132.3,132.19,82.9196]
[1718996482477,16.2199,132.3,132.19,45.0]
[1718996482777,16.2199,132.3,132.18,22.75]
[1718996482778,16.2199,132.3,132.17,33.67]
[1718996482979,16.2199,132.3,132.18,60.1308]
[1718996483282,16.2199,132.3,132.18,6.0519]
[1718996483579,20.0,132.29,132.18,6.0519]
[1718996483757,51.0091,132.28,132.16,6.0529]
[1718996484082,15.6025,132.26,132.13,0.8627372]
[1718996484264,65.0,132.25,132.13,6.9169372]
[1718996484465,65.0,132.25,132.13,0.8627372]
[1718996484660,20.0,132.25,132.13,0.8627372]
[1718996484861,15.6025,132.26,132.13,0.8627372]
[1718996485075,15.6025,132.26,132.19,6.0517]
[1718996485399,15.6025,132.26,132.13,0.8627372]
[1718996485400,15.6025,132.26,132.16,15.133]
[1718996485684,15.6025,132.26,132.13,0.8627372]
[1718996485994,20.0,132.25,132.13,0.8627372]
[1718996486289,15.6025,132.26,132.17,6.0527]
[1718996486477,15.6025,132.26,132.18,6.0523]
[1718996486784,15.6025,132.26,132.17,6.0526]
[1718996486959,15.6025,132.26,132.18,6.0521]
[1718996487466,15.6025,132.26,132.16,6.0528]
[1718996487863,15.6025,132.26,132.17,6.0527]
[1718996488194,15.6025,132.26,132.13,0.8627372]
[1718996488373,65.0,132.25,132.13,6.9169372]
[1718996488575,6.5828,132.24,132.13,0.8627372]
[1718996488758,65.0,132.23,132.13,0.8627372]
[1718996489364,65.0,132.23,132.13,6.9172372]
[1718996489565,65.0,132.23,132.13,0.8627372]
[1718996490380,16.497,132.22,132.13,0.8627372]
[1718996490583,6.1811,132.2,132.13,0.8627372]
[1718996490894,45.0,132.19,132.13,0.8627372]
[1718996491371,6.1811,132.2,132.13,0.8627372]
[1718996492577,16.497,132.22,132.13,0.8627372]
[1718996492786,6.1811,132.24,132.19,6.0518]
[1718996492986,6.1811,132.24,132.18,6.0522]
[1718996493181,6.1811,132.24,132.18,6.052]
[1718996493691,6.1811,132.24,132.15,15.1333]
[1718996493882,6.1811,132.24,132.13,31.0335372]
[1718996494279,6.1811,132.24,132.17,6.0527]
[1718996494484,6.1811,132.24,132.17,6.0526]
[1718996494677,6.1811,132.24,132.18,6.0523]
[1718996494997,6.1811,132.24,132.14,45.0]
[1718996495189,6.1811,132.24,132.13,0.8627372]
[1718996496199,45.0,132.23,132.13,0.8627372]
[1718996496900,20.0,132.22,132.13,0.8627372]
[1718996497197,15.0101,132.2,132.13,0.8627372]
[1718996500504,6.372,132.19,132.13,0.8627372]
[1718996500813,51.372,132.19,132.13,0.8627372]
[1718996500992,6.372,132.19,132.13,0.8627372]
[1718996501406,15.0101,132.2,132.17,6.0527]
[1718996501585,6.372,132.23,132.17,6.0527]
[1718996501786,6.372,132.23,132.16,6.053]
[1718996502097,6.372,132.23,132.17,6.0527]
[1718996502302,6.372,132.23,132.16,6.0531]
[1718996502522,6.372,132.23,132.17,6.0526]
[1718996502703,6.372,132.23,132.17,6.0527]
[1718996503093,6.372,132.23,132.15,6.0532]
[1718996503791,6.372,132.23,132.17,6.0526]
[1718996504514,6.372,132.23,132.16,6.053]
[1718996504693,6.372,132.23,132.14,6.0539]
[1718996505026,6.372,132.23,132.13,0.8627372]
[1718996505195,45.0,132.22,132.13,0.8627372]
[1718996506297,6.5935,132.2,132.13,0.8627372]
[1718996506613,45.0,132.19,132.13,0.8627372]
[1718996507022,6.5935,132.2,132.13,0.8627372]
[1718996507721,6.5935,132.2,132.14,6.0539]
[1718996507888,6.5935,132.2,132.13,0.8627372]
[1718996510016,6.5935,132.2,132.14,6.0541]
[1718996510518,22.1429,132.27,132.18,6.052]
[1718996510722,22.1429,132.27,132.17,6.0525]
[1718996510927,22.1429,132.27,132.13,6.9169372]
[1718996511296,22.1429,132.27,132.13,0.8627372]
[1718996511623,106.2468,132.26,132.13,0.8627372]
[1718996511916,6.2468,132.21,132.13,0.8627372]
[1718996512092,65.0,132.2,132.13,0.8627372]
[1718996513196,22.1429,132.19,132.13,0.8627372]
[1718996513400,45.0,132.18,132.13,0.8627372]
[1718996513820,30.05997367,132.19,132.13,0.8627372]
[1718996514120,22.1429,132.19,132.13,0.8627372]
[1718996514294,45.0,132.18,132.13,0.8627372]
[1718996514926,20.0,132.17,132.13,0.8627372]
[1718996515218,45.0,132.16,132.13,0.8627372]
[1718996515424,20.0,132.17,132.13,0.8627372]
[1718996515638,20.0,132.18,132.13,0.8627372]
[1718996515803,45.0,132.17,132.13,0.8627372]
[1718996516910,20.0,132.16,132.13,0.8627372]
[1718996517111,45.0,132.15,132.13,0.8627372]
[1718996517911,20.0,132.16,132.13,0.8627372]
[1718996518223,20.0,132.18,132.13,0.8627372]
[1718996518412,45.0,132.17,132.13,0.8627372]
[1718996518725,20.0,132.16,132.13,0.8627372]
[1718996519202,20.0,132.18,132.13,0.8627372]
[1718996520232,6.5638,132.16,132.03,15.7775]
[1718996520413,6.5638,132.16,132.05,6.0579]
[1718996520414,65.0,132.15,132.05,6.0579]
[1718996520612,65.0,132.15,132.06,6.0578]
[1718996520919,65.0,132.15,132.05,6.0582]
[1718996521732,20.0,132.15,132.03,15.7775]
[1718996522105,20.0,132.15,132.07,6.057]
[1718996522403,15.8961,132.19,132.07,15.1425]
[1718996522404,14.8961,132.19,132.07,15.1425]
[1718996522614,14.8961,132.19,132.06,100.17]
[1718996522903,6.5912,132.25,132.15,6.0536]
[1718996523115,26.5912,132.25,132.15,6.0536]
[1718996523335,26.5912,132.25,132.14,6.0541]
[1718996523531,26.5912,132.25,132.11,37.8877]
[1718996523839,26.5912,132.25,132.12,45.0]
[1718996524207,26.5912,132.25,132.14,6.0539]
[1718996524208,6.5912,132.25,132.14,6.0539]
[1718996524412,6.5912,132.25,132.15,6.0536]
[1718996524735,6.5912,132.25,132.11,15.1377]
[1718996524938,6.5912,132.25,132.14,6.054]
[1718996525147,6.5912,132.25,132.12,6.0549]
[1718996525508,15.2563,132.24,132.13,6.0546]
[1718996525736,20.0,132.23,132.12,6.0549]
[1718996525925,20.0,132.23,132.14,6.054]
[1718996526316,7.9151276,132.26,132.19,6.0518]
[1718996526530,16.5267,132.28,132.15,22.75]
[1718996526531,23.1061,132.28,132.17,15.1319]
[1718996526759,23.1061,132.28,132.18,45.0]
[1718996526913,23.1061,132.32,132.21,6.0509]
[1718996527106,23.1061,132.32,132.18,45.0]
[1718996527107,20.0,132.31,132.18,45.0]
[1718996527310,20.0,132.31,132.2,6.0513]
[1718996527811,23.1061,132.32,132.16,6.5228]
[1718996528041,100.0,132.3,132.16,6.5228]
[1718996528349,15.6962,132.27,132.14,16.214]
[1718996528517,15.6962,132.27,132.14,22.2681]
[1718996528912,6.6639,132.26,132.09,55.3627]
[1718996529126,6.6639,132.26,132.09,21.6027]
[1718996529127,45.0,132.25,132.09,21.6027]
[1718996529333,20.0,132.24,132.09,21.6027]
[1718996529616,45.0,132.23,132.09,21.6027]
[1718996529832,45.0,132.23,132.13,6.0541]
[1718996530514,45.0,132.23,132.14,6.0541]
[1718996531136,20.0,132.24,132.16,6.0529]
[1718996531320,20.0,132.25,132.16,6.0529]
[1718996531515,20.0,132.25,132.17,6.0527]
[1718996531730,20.0,132.25,132.16,6.0532]
[1718996531929,20.0,132.25,132.15,6.0536]
[1718996532124,20.0,132.25,132.15,6.0535]
[1718996532630,20.0,132.25,132.16,6.0532]
[1718996533235,6.6639,132.26,132.14,22.75]
[1718996533438,6.5215,132.3,132.22,6.05]
[1718996533640,6.5215,132.3,132.19,15.1291]
[1718996533809,6.5215,132.3,132.22,6.0503]
[1718996534248,6.5215,132.3,132.21,6.0508]
[1718996534427,6.5215,132.3,132.22,6.0504]
[1718996534647,6.5215,132.3,132.21,6.0508]
[1718996535354,6.5215,132.3,132.16,21.5826]
[1718996535522,6.5215,132.3,132.17,15.1309]
[1718996535718,6.5215,132.3,132.2,6.051]
[1718996535930,6.5215,132.3,132.16,6.4503]
[1718996536142,6.5215,132.3,132.21,6.0508]
[1718996536519,6.5215,132.3,132.18,15.1299]
[1718996536520,6.5215,132.3,132.22,6.0504]
[1718996536735,6.5215,132.3,132.22,6.0503]
[1718996537342,6.5215,132.3,132.21,6.0508]
[1718996538549,6.5215,132.3,132.2,6.0512]
[1718996538920,6.5215,132.3,132.21,6.0508]
[1718996539119,6.5215,132.3,132.22,6.0504]
[1718996539834,6.5215,132.3,132.21,6.0508]
[1718996540345,6.5215,132.3,132.17,6.0523]
[1718996540346,20.0,132.29,132.17,6.0523]
[1718996540520,45.0,132.28,132.18,6.0522]
[1718996540919,20.0,132.27,132.13,6.0543]
[1718996541142,45.0,132.26,132.12,21.3071]
[1718996541314,20.0,132.25,132.16,6.053]
[1718996541716,20.0,132.25,132.17,6.0526]
[1718996541966,20.0,132.25,132.17,6.0523]
[1718996542432,20.0,132.25,132.17,6.0526]
[1718996542637,20.0,132.28,132.16,6.053]
[1718996542842,45.0,132.27,132.16,6.053]
[1718996543033,20.0,132.26,132.16,6.053]
[1718996543449,20.0,132.26,132.12,28.9195]
[1718996543637,22.1544,132.24,132.12,6.1695]
[1718996544222,22.1544,132.24,132.15,6.0536]
[1718996544943,22.1544,132.24,132.1,33.72]
[1718996545157,65.0,132.23,132.1,6.0557]
[1718996545460,65.0,132.23,132.12,6.0549]
[1718996545619,65.0,132.23,132.1,6.0559]
[1718996545826,65.0,132.23,132.08,6.2933]
[1718996546228,65.0,132.23,132.11,6.0554]
[1718996547054,65.0,132.23,132.08,21.4346]
[1718996547356,65.0,132.23,132.12,6.0547]
[1718996548245,65.0,132.23,132.12,6.0549]
[1718996549262,65.0,132.23,132.11,6.0554]
[1718996549838,65.0,132.23,132.13,6.0544]
[1718996550068,65.0,132.23,132.13,6.0543]
[1718996550240,20.0,132.23,132.1,15.1389]
[1718996550448,20.0,132.23,132.14,6.054]
[1718996550746,20.0,132.23,132.13,6.0544]
[1718996552257,20.0,132.23,132.1,22.75]
[1718996552459,20.0,132.23,132.14,6.0538]
[1718996552634,20.0,132.23,132.15,6.0537]
[1718996552843,22.1544,132.24,132.18,6.0521]
[1718996553180,22.1544,132.24,132.2,6.0511]
[1718996553466,6.2637,132.28,132.2,6.0511]
[1718996554042,6.2637,132.28,132.2,6.0512]
[1718996554659,6.2637,132.28,132.21,6.0509]
[1718996554863,6.2637,132.28,132.2,6.0512]
[1718996555040,6.2637,132.28,132.16,22.644]
[1718996555244,6.2637,132.28,132.19,6.0518]
[1718996555635,6.2637,132.28,132.18,6.0522]
[1718996555861,6.2637,132.28,132.17,6.0527]
[1718996556170,6.2637,132.28,132.16,22.644]
[1718996556334,45.0,132.27,132.17,6.0525]
[1718996556534,45.0,132.27,132.18,6.0522]
[1718996557070,6.2637,132.28,132.2,6.051]
[1718996557251,6.2637,132.28,132.19,6.0518]
[1718996557559,6.2637,132.28,132.18,6.052]
[1718996557757,45.0,132.27,132.17,6.0525]
[1718996557953,45.0,132.27,132.15,15.1342]
[1718996558357,45.0,132.27,132.17,6.0526]
[1718996558539,45.0,132.27,132.16,6.0531]
[1718996558945,45.0,132.27,132.14,6.0537]
[1718996559159,45.0,132.27,132.12,37.6519]
[1718996559461,45.0,132.27,132.17,6.0527]
[1718996560053,45.0,132.27,132.16,6.0531]
[1718996560269,45.0,132.27,132.12,22.5153]
[1718996560565,15.1149,132.25,132.15,6.0536]
[1718996561665,6.056,132.23,132.15,6.0536]
[1718996562173,6.056,132.23,132.14,6.0539]
[1718996562343,6.056,132.23,132.15,6.0534]
[1718996563157,6.056,132.23,132.14,6.0539]
[1718996563764,6.056,132.23,132.13,6.0545]
[1718996564069,15.243,132.21,132.11,6.0553]
[1718996564561,15.243,132.21,132.12,6.055]
[1718996565268,45.0,132.2,132.11,6.0553]
[1718996566770,45.0,132.2,132.11,6.0554]
[1718996567268,45.0,132.2,132.1,6.056]
[1718996567468,6.1917,132.19,132.1,6.056]
[1718996567879,6.1917,132.19,132.1,6.0558]
[1718996569972,6.1917,132.19,132.11,6.0554]
[1718996570171,6.1917,132.19,132.08,30.2836]
[1718996570347,6.1917,132.19,132.16,6.0532]
[1718996570881,15.243,132.21,132.15,6.0535]
[1718996571164,15.243,132.21,132.14,6.054]
[1718996571774,15.243,132.21,132.13,6.0544]
[1718996571981,6.2995,132.2,132.04,46.5409]
[1718996572277,6.2995,132.2,132.09,6.0562]
[1718996572278,71.2995,132.2,132.09,6.0562]
[1718996572452,71.2995,132.2,132.1,6.0559]
[1718996573552,71.2995,132.2,132.09,6.0563]
[1718996573980,71.2995,132.2,132.05,15.1455]
[1718996574281,71.2995,132.2,132.07,15.1432]
[1718996574879,71.2995,132.2,132.1,6.0557]
[1718996575107,71.2995,132.2,132.09,6.0562]
[1718996575589,71.2995,132.2,132.08,6.0567]
[1718996575760,26.2995,132.2,132.04,16.2479]
[1718996576080,6.2995,132.2,132.06,133.73]
[1718996576378,6.2995,132.2,132.14,6.0538]
[1718996576574,6.2995,132.2,132.13,6.0544]
[1718996576782,6.2995,132.2,132.14,6.054]
[1718996577076,6.2995,132.2,132.13,6.0544]
[1718996578462,6.2995,132.2,132.14,6.0541]
[1718996578866,6.2995,132.2,132.08,15.1423]
[1718996579068,6.2995,132.2,132.1,6.0558]
[1718996579280,45.0,132.19,132.09,6.0561]
[1718996580478,6.2995,132.2,132.11,6.0554]
[1718996580786,6.2995,132.2,132.12,6.055]
[1718996581162,6.2995,132.2,132.1,6.0557]
[1718996581562,6.2995,132.2,132.12,6.0549]
[1718996581790,6.2995,132.2,132.11,6.0553]
[1718996582293,6.2995,132.2,132.12,6.055]
[1718996582494,6.2995,132.2,132.09,15.1411]
[1718996582692,6.2995,132.2,132.05,0.17]
[1718996582866,65.0,132.19,132.03,21.2441]
[1718996583063,65.0,132.19,132.07,15.1425]
[1718996583263,22.3885,132.18,132.05,15.1456]
[1718996583885,22.3885,132.18,132.07,15.1432]
[1718996584096,22.3885,132.18,132.11,6.0552]
[1718996584397,22.3885,132.18,132.08,22.75]
[1718996584568,22.3885,132.18,132.09,45.34]
[1718996584766,22.3885,132.18,132.15,6.0536]
[1718996585106,22.3885,132.18,132.14,6.0537]
[1718996585273,22.3885,132.18,132.13,6.0544]
[1718996585872,22.3885,132.18,132.08,45.0]
[1718996586265,22.3885,132.18,132.12,6.0548]
[1718996586483,22.3885,132.18,132.08,45.0]
[1718996587025,22.3885,132.18,132.11,6.0554]
[1718996587516,22.3885,132.18,132.1,6.0558]
[1718996588805,22.1773,132.22,132.11,184.0575]
[1718996589017,22.1773,132.22,132.16,15.1326]
[1718996589181,22.1773,132.22,132.17,6.0526]
[1718996589779,22.1773,132.22,132.15,6.0535]
[1718996589984,22.1773,132.22,132.16,51.0532]
[1718996590212,22.1773,132.22,132.17,6.0528]
[1718996590493,22.1773,132.22,132.16,51.0531]
[1718996590717,22.1773,132.22,132.16,45.0]
[1718996590993,22.1773,132.22,132.15,6.0535]
[1718996591587,22.1773,132.22,132.08,16.2348]
[1718996591790,22.1773,132.22,132.11,6.0555]
[1718996591991,45.0,132.21,132.11,6.0555]
[1718996592191,45.0,132.21,132.12,6.055]
[1718996592718,45.0,132.21,132.11,6.0553]
[1718996593214,45.0,132.21,132.08,15.1412]
[1718996593390,45.0,132.21,132.1,6.0556]
[1718996593590,45.0,132.21,132.11,6.0554]
[1718996593788,22.1773,132.22,132.12,6.0548]
[1718996594020,20.0,132.21,132.09,15.1402]
[1718996594183,45.0,132.2,132.09,15.1402]
[1718996594386,45.0,132.2,132.11,6.0553]
[1718996595519,45.0,132.2,132.1,6.0558]
[1718996595687,6.6412,132.19,132.06,22.75]
[1718996595887,6.1727,132.17,132.06,6.0576]
[1718996596100,65.0,132.16,132.03,15.1478]
[1718996596493,65.0,132.16,132.06,6.0576]
[1718996596703,65.0,132.16,132.03,15.1478]
[1718996597391,65.0,132.16,132.07,6.0571]
[1718996597594,65.0,132.16,132.06,6.0576]
[1718996599820,72.90264115,132.16,132.07,6.0573]
[1718996599989,65.0,132.16,132.03,15.1479]
[1718996600314,20.0,132.16,132.05,37.8949]
[1718996600612,6.1727,132.17,132.1,6.056]
[1718996601124,6.1727,132.17,132.11,0.17]
[1718996601411,21.6212,132.21,132.14,6.0539]
[1718996601795,21.6212,132.21,132.11,45.0]
[1718996602000,21.6212,132.21,132.12,6.0549]
[1718996602828,21.6212,132.21,132.11,6.0554]
[1718996602985,21.6212,132.21,132.1,6.0558]
[1718996603829,45.0,132.2,132.09,6.0563]
[1718996604127,65.0,132.2,132.09,6.0563]
[1718996604592,21.6212,132.19,132.09,6.0563]
[1718996604787,45.0,132.18,132.08,6.0567]
[1718996605008,65.0,132.18,132.07,6.0571]
[1718996605194,21.6212,132.17,132.06,6.0577]
[1718996605397,65.0,132.16,132.06,6.0577]
[1718996606122,65.0,132.16,132.02,70.4773]
[1718996606287,65.0,132.16,132.02,36.7473]
[1718996606690,21.6212,132.15,132.05,6.0582]
[1718996606890,45.0,132.14,132.05,6.0582]
[1718996608937,21.6212,132.15,132.09,6.0563]
[1718996609230,21.6212,132.15,132.11,6.0553]
[1718996609725,21.6212,132.15,132.09,6.0561]
[1718996610303,21.6212,132.15,132.03,33.73]
[1718996610507,21.6212,132.15,132.07,6.0572]
[1718996610816,21.6212,132.15,132.08,6.0568]
[1718996611017,21.6212,132.15,132.07,6.0572]
[1718996611533,21.6212,132.15,132.06,6.0576]
[1718996612930,21.6212,132.15,132.07,6.0572]
[1718996613227,21.6212,132.15,132.05,6.0578]
[1718996613416,21.6212,132.15,132.06,6.0578]
[1718996613417,45.0,132.14,132.06,6.0578]
[1718996613801,21.6212,132.15,132.07,6.0573]
[1718996614211,21.6212,132.15,132.06,6.0577]
[1718996614417,21.6212,132.15,132.04,60.1467]
[1718996614628,21.6212,132.15,132.08,6.0565]